bitfinex/quotes_BTCUSD_20241222
["timestamp","ask_amount","ask_price","bid_price","bid_amount"]
[1734892269451,3.4e-07,96347.0,96346.0,0.007]
[1734892269851,3.4e-07,96347.0,96344.0,0.415176]
[1734892270247,3.4e-07,96347.0,96344.0,0.423176]
[1734892270499,3.4e-07,96347.0,96344.0,0.415176]
[1734892271068,3.4e-07,96347.0,96346.0,0.007]
[1734892271499,3.4e-07,96347.0,96346.0,0.10934626]
[1734892273215,3.4e-07,96347.0,96346.0,0.18524626]
[1734892273604,3.4e-07,96347.0,96346.0,0.23254626]
[1734892273819,8.55e-05,96368.0,96348.0,0.15]
[1734892274032,8.55e-05,96368.0,96364.0,0.207546]
[1734892274330,8.55e-05,96368.0,96364.0,0.3088544]
[1734892275242,8.55e-05,96368.0,96364.0,0.39229509]
[1734892276974,8.55e-05,96368.0,96364.0,0.39729509]
[1734892277605,0.0094544,96365.0,96364.0,0.39729509]
[1734892277794,0.0094544,96365.0,96364.0,0.39229509]
[1734892278069,0.207445,96411.0,96364.0,0.39229509]
[1734892278070,0.207445,96411.0,96388.0,0.207494]
[1734892278890,0.01039642,96403.0,96388.0,0.207494]
[1734892279859,0.0001856,96389.0,96388.0,0.207494]
[1734892280841,0.0001856,96389.0,96388.0,0.211494]
[1734892281027,0.0001856,96389.0,96388.0,0.004]
[1734892283044,0.0001856,96389.0,96374.0,0.0001712]
[1734892283317,0.207494,96388.0,96376.0,0.20752]
[1734892283431,0.0001856,96389.0,96388.0,0.003]
[1734892283632,0.308986,96389.0,96388.0,0.003]
[1734892284090,0.458986,96389.0,96388.0,0.003]
[1734892284307,0.207516,96378.0,96374.0,0.0001712]
[1734892284881,0.207516,96378.0,96376.0,0.003]
[1734892286433,0.207516,96378.0,96374.0,0.0001712]
[1734892286847,0.207516,96378.0,96374.0,0.0031712]
[1734892287248,0.415032,96378.0,96374.0,0.0001712]
[1734892287572,0.415032,96378.0,96376.0,0.003]
[1734892287964,0.415032,96378.0,96374.0,0.0001712]
[1734892288307,0.42525662,96378.0,96374.0,0.0031712]
[1734892289950,0.42525662,96378.0,96374.0,0.0001712]
[1734892290329,0.21774062,96378.0,96376.0,0.003]
[1734892290708,0.20752,96376.0,96374.0,0.0001712]
[1734892290907,0.1013084,96375.0,96374.0,0.0001712]
[1734892291109,3.1523084,96375.0,96374.0,0.0031712]
[1734892291478,3.1523084,96375.0,96374.0,0.0001712]
[1734892291927,3.4253084,96375.0,96374.0,0.0001712]
[1734892292131,3.6040084,96375.0,96374.0,0.0001712]
[1734892292302,0.480544,96365.0,96364.0,0.00054069]
[1734892292639,5.0538524,96365.0,96364.0,0.00054069]
[1734892292852,5.0308524,96365.0,96364.0,0.00054069]
[1734892293308,5.1308524,96365.0,96364.0,0.00054069]
[1734892293531,5.20024489,96365.0,96364.0,0.00054069]
[1734892293683,0.207611,96334.0,96321.0,0.207638]
[1734892294637,0.207621,96329.0,96318.0,0.00071243]
[1734892294843,0.1013084,96329.0,96318.0,0.00071243]
[1734892295262,0.0787,96359.0,96321.0,0.006]
[1734892295474,0.1013084,96351.0,96321.0,0.006]
[1734892295895,0.1013084,96351.0,96322.0,0.00103809]
[1734892296096,0.1013084,96351.0,96324.0,0.207632]
[1734892296299,0.1013084,96351.0,96342.0,0.207592]
[1734892296646,0.1013084,96351.0,96338.0,0.2076]
[1734892297252,0.207576,96350.0,96335.0,0.207607]
[1734892297462,0.207585,96346.0,96329.0,0.20762]
[1734892297817,0.1013084,96345.0,96329.0,0.20762]
[1734892297968,0.207599,96340.0,96318.0,0.00271243]
[1734892298169,0.1013084,96339.0,96318.0,0.00071243]
[1734892298394,0.207602,96338.0,96322.0,0.207635]
[1734892298596,0.207606,96336.0,96322.0,0.207635]
[1734892298976,0.1013084,96337.0,96327.0,0.207625]
[1734892299431,0.1013084,96337.0,96331.0,0.207617]
[1734892299656,0.1013084,96337.0,96318.0,0.00071243]
[1734892300040,0.1013084,96337.0,96327.0,0.207625]
[1734892301018,0.1013084,96337.0,96323.0,0.207632]
[1734892301389,0.1,96355.0,96318.0,0.00071243]
[1734892301390,0.207532,96371.0,96325.0,0.20763]
[1734892301584,0.207532,96371.0,96356.0,0.207562]
[1734892301585,0.1013084,96364.0,96356.0,0.207562]
[1734892301939,0.1013084,96364.0,96340.0,0.0781]
[1734892302167,0.1013084,96364.0,96352.0,0.20757]
[1734892302683,0.1013084,96364.0,96349.0,0.207576]
[1734892303522,0.1013084,96364.0,96350.0,0.207576]
[1734892303928,0.1013084,96364.0,96351.0,0.207574]
[1734892304129,0.1013084,96364.0,96355.0,0.207565]
[1734892304344,0.1013084,96364.0,96352.0,0.20757]
[1734892306799,0.1013084,96364.0,96341.0,0.00054123]
[1734892306800,0.15,96362.0,96341.0,0.00054123]
[1734892306992,0.207585,96346.0,96341.0,0.00054123]
[1734892307217,1.6193084,96345.0,96341.0,0.00054123]
[1734892307437,1.584,96344.0,96341.0,0.00054123]
[1734892307654,0.207593,96342.0,96341.0,0.00054123]
[1734892307821,2.2599014,96342.0,96341.0,0.00054123]
[1734892309291,1.9999014,96342.0,96341.0,0.00054123]
[1734892310186,2.1499014,96342.0,96341.0,0.00054123]
[1734892311629,1.9999014,96342.0,96341.0,0.00054123]
[1734892312155,1.9999014,96342.0,96290.0,0.13756253]
[1734892312510,1.9999014,96342.0,94200.0,0.044]
[1734892312704,0.307889,96205.0,96164.0,0.05109842]
[1734892312854,0.35,96197.0,96196.0,0.21668194]
[1734892313175,0.2,96173.0,96130.0,0.0751]
[1734892313385,0.2,96172.0,96148.0,0.3107989]
[1734892313605,0.1,96162.0,96148.0,0.27643568]
[1734892313808,0.1,96155.0,96151.0,0.0005414]
[1734892313938,0.2,96156.0,96151.0,0.0005414]
[1734892314150,0.1,96154.0,96151.0,0.0005414]
[1734892314350,0.17154964,96153.0,96151.0,0.0005414]
[1734892314571,0.17154964,96155.0,96137.0,0.19352697]
[1734892314797,0.17154964,96155.0,96144.0,0.208021]
[1734892315017,3.16809512,96153.0,96145.0,0.00103992]
[1734892315219,0.17154964,96152.0,96143.0,0.00054193]
[1734892315653,0.17154964,96152.0,96143.0,0.00050193]
[1734892315902,0.17154964,96153.0,96143.0,0.00050193]
[1734892316101,3.16809512,96151.0,96143.0,0.00050193]
[1734892316308,0.17154964,96150.0,96143.0,0.00046193]
[1734892316437,0.17154964,96150.0,96144.0,0.208021]
[1734892317055,0.17154964,96151.0,96144.0,0.416042]
[1734892317478,0.17254964,96151.0,96144.0,0.416042]
[1734892317676,4.53527192,96149.0,96145.0,0.00103996]
[1734892317836,3.47475903,96149.0,96148.0,0.536]
[1734892318037,0.207826,96235.0,96148.0,0.536]
[1734892318038,0.1,96230.0,96152.0,0.536]
[1734892318232,0.1,96232.0,96194.0,0.1013084]
[1734892318433,0.1,96228.0,96195.0,0.10234757]
[1734892318668,0.1,96229.0,96211.0,0.207875]
[1734892318875,0.1,96228.0,96211.0,0.207875]
[1734892319092,0.1,96228.0,96211.0,0.04528046]
[1734892319455,0.1,96228.0,96211.0,0.207875]
[1734892319650,0.1,96211.0,96196.0,0.207906]
[1734892319773,0.1,96211.0,96196.0,0.20844898]
[1734892320179,0.1,96211.0,96194.0,0.207912]
[1734892320507,0.10054188,96211.0,96187.0,0.207927]
[1734892320874,0.10054188,96211.0,96196.0,0.207906]
[1734892321044,0.4961843,96202.0,96190.0,0.207921]
[1734892321199,0.4961843,96202.0,96196.0,0.003]
[1734892321405,0.4961843,96206.0,96197.0,0.207906]
[1734892321599,0.4961843,96206.0,96197.0,0.415812]
[1734892321808,0.4961843,96208.0,96197.0,0.207906]
[1734892322127,0.4961843,96208.0,96190.0,0.207921]
[1734892322128,0.4961843,96208.0,96206.0,0.207885]
[1734892322328,0.4961843,96208.0,96207.0,0.1013084]
[1734892322534,0.1,96247.0,96209.0,0.20788]
[1734892322689,0.1,96245.0,96210.0,0.10234751]
[1734892322888,0.6414942,96252.0,96227.0,0.20784]
[1734892323175,0.6414942,96252.0,96229.0,0.207837]
[1734892323176,0.5414942,96252.0,96229.0,0.207837]
[1734892323313,1.7210565,96231.0,96230.0,0.2513084]
[1734892323532,0.1431565,96231.0,96230.0,0.6373084]
[1734892323747,0.4505922,96249.0,96248.0,0.207796]
[1734892323940,0.4505922,96249.0,96248.0,0.3091044]
[1734892324161,0.05138197,96288.0,96252.0,0.686]
[1734892324360,0.1001,96289.0,96283.0,0.20772]
[1734892324775,0.1,96287.0,96255.0,0.1013084]
[1734892324997,0.09152085,96279.0,96276.0,0.207735]
[1734892325556,0.09152085,96279.0,96278.0,0.207731]
[1734892325766,0.09152085,96279.0,96278.0,0.3090394]
[1734892326154,0.13728127,96285.0,96284.0,0.207718]
[1734892326286,0.13728127,96285.0,96284.0,0.4590264]
[1734892326486,0.13728127,96285.0,96284.0,0.3090264]
[1734892326688,0.0001,96289.0,96285.0,0.207714]
[1734892326889,0.0001,96289.0,96287.0,0.207712]
[1734892327124,0.0001,96289.0,96288.0,0.10234662]
[1734892327289,8.57e-05,96328.0,96308.0,0.207667]
[1734892327524,8.57e-05,96328.0,96308.0,0.3089754]
[1734892327687,8.57e-05,96328.0,96327.0,0.207626]
[1734892327889,8.57e-05,96328.0,96327.0,0.3089344]
[1734892328296,0.0001,96349.0,96345.0,0.207585]
[1734892328490,0.0001,96349.0,96347.0,0.207583]
[1734892328740,0.0001,96349.0,96348.0,0.1023461]
[1734892329036,0.00064255,96349.0,96348.0,0.1023461]
[1734892329974,0.00064255,96349.0,96337.0,0.207602]
[1734892330182,0.00064255,96349.0,96338.0,0.10234614]
[1734892330350,0.00064255,96349.0,96345.0,0.207585]
[1734892330918,0.00064255,96349.0,96347.0,0.207583]
[1734892331129,0.00164255,96349.0,96348.0,0.10234608]
[1734892331570,0.00064255,96349.0,96348.0,0.10234608]
[1734892331950,8.56e-05,96364.0,96363.0,0.207548]
[1734892332156,8.56e-05,96364.0,96363.0,0.3088564]
[1734892332556,8.56e-05,96395.0,96386.0,0.207498]
[1734892332840,8.56e-05,96395.0,96388.0,0.207494]
[1734892333081,8.56e-05,96395.0,96388.0,0.3088024]
[1734892333450,8.56e-05,96395.0,96394.0,0.207481]
[1734892333635,8.56e-05,96395.0,96394.0,0.3087894]
[1734892333845,0.0001,96409.0,96405.0,0.207458]
[1734892334044,0.0001,96409.0,96405.0,0.3087664]
[1734892334400,8.56e-05,96444.0,96428.0,0.207408]
[1734892334607,8.56e-05,96444.0,96428.0,0.3087164]
[1734892335350,8.56e-05,96444.0,96443.0,0.207376]
[1734892335552,8.56e-05,96444.0,96443.0,0.3086844]
[1734892335759,8.56e-05,96444.0,96443.0,0.30873853]
[1734892336163,0.0001,96469.0,96458.0,0.207342]
[1734892336391,0.0001,96469.0,96460.0,0.207339]
[1734892336598,0.0001,96469.0,96468.0,0.207322]
[1734892336808,0.0001,96469.0,96468.0,0.1013084]
[1734892337014,0.0001,96469.0,96451.0,0.743357]
[1734892337015,0.0001,96469.0,96461.0,0.00103648]
[1734892337215,0.0001,96469.0,96468.0,0.1013084]
[1734892337424,0.141,96500.0,96468.0,0.1013084]
[1734892337425,0.141,96500.0,96475.0,0.207306]
[1734892337643,0.241,96500.0,96482.0,0.207292]
[1734892337846,0.1001,96489.0,96474.0,0.207307]
[1734892338051,0.0001,96489.0,96476.0,0.207305]
[1734892338179,0.0001,96489.0,96479.0,0.207297]
[1734892338383,0.0001,96489.0,96481.0,0.207294]
[1734892338608,0.0001,96489.0,96482.0,0.10234458]
[1734892339022,0.0001,96489.0,96482.0,0.10839871]
[1734892339217,0.141,96500.0,96485.0,0.207284]
[1734892339419,0.141,96500.0,96493.0,0.1013084]
[1734892339784,0.141,96500.0,96482.0,0.20734613]
[1734892339977,0.141,96500.0,96484.0,0.207288]
[1734892340182,0.141,96500.0,96485.0,0.10234462]
[1734892340419,0.141,96500.0,96486.0,0.207283]
[1734892340634,0.141,96500.0,96493.0,0.207267]
[1734892340842,0.141,96500.0,96494.0,0.10234458]
[1734892340987,0.141,96500.0,96482.0,5.413e-05]
[1734892341194,0.1,96492.0,96482.0,5.413e-05]
[1734892341359,8.57e-05,96483.0,96482.0,5.413e-05]
[1734892344405,0.1,96488.0,96482.0,5.413e-05]
[1734892344611,0.1,96488.0,96482.0,0.00305413]
[1734892344789,0.09997012,96489.0,96482.0,5.413e-05]
[1734892344989,0.14867012,96490.0,96482.0,5.413e-05]
[1734892345186,0.0487,96490.0,96482.0,5.413e-05]
[1734892345390,0.09997012,96489.0,96482.0,0.00505413]
[1734892345593,0.09997012,96489.0,96482.0,5.413e-05]
[1734892346434,0.09997012,96486.0,96482.0,5.413e-05]
[1734892346829,0.09997012,96483.0,96482.0,5.413e-05]
[1734892347250,0.19997012,96483.0,96482.0,5.413e-05]
[1734892348183,0.19997012,96483.0,96418.0,0.20743]
[1734892348184,0.1,96463.0,96418.0,0.20743]
[1734892348353,0.1,96463.0,96422.0,0.1013084]
[1734892348677,0.09997012,96457.0,96423.0,0.00103669]
[1734892348880,0.1,96466.0,96425.0,0.1013084]
[1734892349107,0.1,96454.0,96427.0,0.20741]
[1734892349384,0.1,96454.0,96418.0,0.00054356]
[1734892349385,0.1,96446.0,96418.0,0.00054356]
[1734892349592,0.1,96446.0,96424.0,0.207415]
[1734892349907,0.1,96446.0,96426.0,0.207412]
[1734892350666,0.1,96445.0,96424.0,0.1013084]
[1734892350865,0.09997012,96443.0,96424.0,0.1013084]
[1734892351071,0.207378,96442.0,96420.0,0.00103688]
[1734892351252,0.207378,96442.0,96418.0,0.00054356]
[1734892351253,0.1,96442.0,96421.0,0.1013084]
[1734892351451,0.09997012,96427.0,96418.0,0.00054356]
[1734892351805,0.15,96440.0,96418.0,0.00054356]
[1734892351806,0.09997012,96422.0,96418.0,0.00054356]
[1734892352795,0.09997012,96422.0,96421.0,0.001]
[1734892353565,0.1,96429.0,96418.0,0.00054356]
[1734892353566,0.09997012,96420.0,96418.0,0.00054356]
[1734892353791,0.24807012,96419.0,96418.0,0.00054356]
[1734892354126,0.24807012,96419.0,96418.0,0.00354356]
[1734892354276,0.245712,96419.0,96418.0,0.00354356]
[1734892354660,0.395712,96419.0,96418.0,0.00354356]
[1734892355088,0.40220415,96419.0,96418.0,0.00354356]
[1734892355399,0.40220415,96419.0,96418.0,0.00054356]
[1734892356594,0.207472,96399.0,96373.0,0.207526]
[1734892356798,0.1,96398.0,96374.0,0.1013084]
[1734892356997,0.1802,96398.0,96375.0,0.20855939]
[1734892357180,0.18669215,96398.0,96377.0,0.207518]
[1734892357373,0.18669215,96398.0,96377.0,0.3088264]
[1734892357806,0.1802,96398.0,96377.0,0.1013084]
[1734892357980,0.1,96397.0,96373.0,5.414e-05]
[1734892358182,0.1,96397.0,96374.0,0.1013084]
[1734892358183,0.307475,96397.0,96374.0,0.1013084]
[1734892358412,0.1,96394.0,96373.0,5.414e-05]
[1734892358756,0.207475,96397.0,96373.0,5.414e-05]
[1734892358757,0.1,96392.0,96373.0,5.414e-05]
[1734892359537,0.00649215,96396.0,96377.0,0.2513084]
[1734892359741,0.00649215,96396.0,96393.0,0.207483]
[1734892359944,0.0214036,96419.0,96394.0,0.10234549]
[1734892360240,0.0214036,96419.0,96401.0,0.207465]
[1734892360419,0.0214036,96419.0,96402.0,0.10234553]
[1734892360633,0.0802,96440.0,96403.0,0.00103698]
[1734892360634,0.1,96437.0,96403.0,0.00103698]
[1734892360832,0.0802,96440.0,96410.0,0.1013084]
[1734892361031,0.0064914,96439.0,96429.0,0.207405]
[1734892361187,0.0064914,96439.0,96429.0,0.1013084]
[1734892361408,0.0802,96440.0,96430.0,0.207403]
[1734892362020,0.0802,96440.0,96435.0,0.207392]
[1734892362220,0.0866914,96440.0,96435.0,0.207392]
[1734892362946,0.0866914,96440.0,96429.0,5.414e-05]
[1734892363126,0.0802,96440.0,96429.0,5.414e-05]
[1734892363322,0.0812,96440.0,96435.0,0.004]
[1734892363662,0.0064914,96439.0,96435.0,0.004]
[1734892363821,0.0064914,96439.0,96429.0,5.414e-05]
[1734892364005,0.0064914,96439.0,96435.0,0.004]
[1734892364214,0.1,96437.0,96435.0,0.004]
[1734892364412,0.307391,96436.0,96429.0,5.414e-05]
[1734892364608,0.1,96436.0,96429.0,5.414e-05]
[1734892364813,0.0064914,96435.0,96429.0,5.414e-05]
[1734892365456,0.1,96430.0,96429.0,5.414e-05]
[1734892367608,0.102,96430.0,96429.0,5.414e-05]
[1734892367985,0.1,96430.0,96429.0,5.414e-05]
[1734892368831,0.10649106,96430.0,96429.0,5.414e-05]
[1734892369024,0.00649106,96430.0,96429.0,5.414e-05]
[1734892369223,0.00649106,96435.0,96429.0,5.414e-05]
[1734892369668,0.002,96430.0,96429.0,5.414e-05]
[1734892369867,0.00649106,96434.0,96429.0,5.414e-05]
[1734892370079,0.1,96430.0,96429.0,5.414e-05]
[1734892370285,0.101,96430.0,96429.0,0.00605414]
[1734892370564,0.10749106,96430.0,96429.0,0.00605414]
[1734892371129,0.10649106,96430.0,96429.0,5.414e-05]
[1734892371446,0.20779946,96430.0,96429.0,5.414e-05]
[1734892371852,0.20979946,96430.0,96429.0,5.414e-05]
[1734892372459,0.38279946,96430.0,96429.0,5.414e-05]
[1734892373071,0.273,96426.0,96425.0,0.000171]
[1734892373268,0.1,96404.0,96386.0,0.207497]
[1734892373453,0.1,96404.0,96386.0,5.414e-05]
[1734892373664,0.307461,96404.0,96386.0,5.414e-05]
[1734892373855,0.00649106,96403.0,96386.0,5.414e-05]
[1734892374100,0.1,96396.0,96386.0,5.414e-05]
[1734892374276,0.1,96391.0,96386.0,5.414e-05]
[1734892375142,0.00649106,96390.0,96386.0,5.414e-05]
[1734892375313,0.00649106,96390.0,96387.0,0.414992]
[1734892375565,0.1,96407.0,96388.0,0.00103729]
[1734892375882,0.1,96407.0,96388.0,0.20852929]
[1734892376083,0.1,96396.0,96386.0,5.414e-05]
[1734892376295,0.1,96388.0,96386.0,5.414e-05]
[1734892376502,0.1462,96389.0,96386.0,5.414e-05]
[1734892376713,0.00649212,96387.0,96386.0,5.414e-05]
[1734892377123,0.10649212,96387.0,96386.0,0.00305414]
[1734892377345,0.10649212,96387.0,96386.0,5.414e-05]
[1734892377783,0.10649212,96387.0,96386.0,0.00405414]
[1734892378185,0.10649212,96387.0,96386.0,5.414e-05]
[1734892378329,0.31398812,96387.0,96386.0,5.414e-05]
[1734892378534,0.31398812,96387.0,96386.0,0.00205414]
[1734892378734,0.31398812,96387.0,96386.0,5.414e-05]
[1734892379356,0.41529652,96387.0,96386.0,5.414e-05]
[1734892380104,0.43829652,96387.0,96386.0,5.414e-05]
[1734892380258,0.23080052,96387.0,96386.0,5.414e-05]
[1734892380477,0.23080052,96387.0,96386.0,0.00205414]
[1734892380478,0.43829652,96387.0,96386.0,0.00205414]
[1734892385313,0.4318044,96387.0,96386.0,0.00205414]
[1734892385486,0.43829867,96387.0,96386.0,0.00205414]
[1734892385708,0.10649427,96387.0,96386.0,0.00205414]
[1734892385908,0.00649427,96387.0,96386.0,0.00205414]
[1734892387070,0.00649427,96387.0,96386.0,5.414e-05]
[1734892387887,0.1,96390.0,96386.0,5.414e-05]
[1734892388255,0.001,96387.0,96386.0,0.00805414]
[1734892388696,0.1,96390.0,96386.0,5.414e-05]
[1734892389064,0.123,96387.0,96386.0,0.00505414]
[1734892389266,0.2243084,96387.0,96386.0,0.00505414]
[1734892389926,0.2243084,96387.0,96386.0,0.00522534]
[1734892390137,0.1,96387.0,96386.0,0.00522534]
[1734892390586,0.0457,96407.0,96387.0,0.207496]
[1734892390808,0.1,96400.0,96391.0,0.207486]
[1734892391022,0.1,96399.0,96391.0,0.207486]
[1734892391184,0.1,96399.0,96387.0,0.207496]
[1734892392000,0.1,96399.0,96388.0,0.207494]
[1734892392201,0.004,96400.0,96397.0,0.207474]
[1734892392401,0.1,96410.0,96403.0,0.207461]
[1734892392609,0.1,96416.0,96411.0,0.207444]
[1734892392773,0.1,96420.0,96411.0,0.207444]
[1734892392973,0.1,96415.0,96408.0,0.20745]
[1734892393218,0.1,96414.0,96408.0,0.20745]
[1734892393529,0.1,96414.0,96405.0,0.207456]
[1734892394174,0.1,96414.0,96409.0,0.207448]
[1734892394390,0.1,96414.0,96387.0,0.207496]
[1734892394590,0.1,96414.0,96407.0,0.207453]
[1734892395244,0.0488,96424.0,96411.0,0.207444]
[1734892395245,0.1,96420.0,96411.0,0.207444]
[1734892395443,0.1,96419.0,96411.0,0.207444]
[1734892395952,0.0488,96424.0,96391.0,0.207488]
[1734892396166,0.0488,96424.0,96417.0,0.207432]
[1734892397427,0.0488,96424.0,96417.0,0.20748614]
[1734892397836,0.0488,96424.0,96418.0,0.20743]
[1734892398602,0.1,96418.0,96417.0,5.414e-05]
[1734892398758,0.5817384,96418.0,96417.0,5.414e-05]
[1734892399612,0.457473,96398.0,96397.0,0.08935075]
[1734892399791,0.5587814,96398.0,96397.0,0.08940502]
[1734892399995,0.5817814,96398.0,96397.0,0.08940502]
[1734892400598,0.58827511,96398.0,96397.0,5.427e-05]
[1734892402299,0.59027511,96398.0,96397.0,5.427e-05]
[1734892402948,0.63847511,96398.0,96397.0,5.427e-05]
[1734892403961,0.480496,96387.0,96354.0,0.08935075]
[1734892404189,0.5818044,96387.0,96386.0,0.0002255]
[1734892404540,0.58829811,96387.0,96386.0,0.0002255]
[1734892405816,0.59429811,96387.0,96386.0,0.0012255]
[1734892409106,0.38680211,96387.0,96386.0,0.0012255]
[1734892409543,0.01249371,96387.0,96386.0,0.0012255]
[1734892409738,0.01249371,96387.0,96386.0,0.1025339]
[1734892409908,0.01249371,96387.0,96386.0,0.3100329]
[1734892410094,0.006,96387.0,96386.0,0.3100329]
[1734892410505,0.506,96387.0,96386.0,0.3100329]
[1734892411005,0.5,96387.0,96386.0,0.3090329]
[1734892411210,0.5,96387.0,96386.0,0.31633038]
[1734892411475,0.501,96387.0,96386.0,0.32333038]
[1734892411813,0.501,96387.0,96386.0,0.43729106]
[1734892411814,0.37872004,96387.0,96386.0,0.43729106]
[1734892412221,0.37172004,96387.0,96386.0,0.44629106]
[1734892412650,0.37072004,96387.0,96386.0,0.43729106]
[1734892412853,0.37072004,96387.0,96386.0,0.78467634]
[1734892413057,0.37172004,96387.0,96386.0,0.78467634]
[1734892413259,0.1,96426.0,96387.0,0.1]
[1734892413478,0.1,96423.0,96388.0,0.10234554]
[1734892413884,8.57e-05,96420.0,96410.0,0.207445]
[1734892414155,8.57e-05,96420.0,96414.0,0.207437]
[1734892414351,8.57e-05,96420.0,96419.0,0.207427]
[1734892414652,8.57e-05,96420.0,96414.0,0.207437]
[1734892414969,8.57e-05,96420.0,96419.0,0.207427]
[1734892415204,8.57e-05,96420.0,96391.0,0.414976]
[1734892415404,8.57e-05,96420.0,96416.0,0.207433]
[1734892415609,8.57e-05,96420.0,96419.0,0.003]
[1734892416003,8.57e-05,96420.0,96417.0,0.207432]
[1734892416211,8.57e-05,96420.0,96419.0,0.207427]
[1734892416487,0.0010857,96420.0,96419.0,0.3157354]
[1734892417265,0.0010857,96420.0,96419.0,0.4157354]
[1734892417758,8.56e-05,96425.0,96424.0,0.207417]
[1734892417977,8.56e-05,96425.0,96424.0,0.4087254]
[1734892418997,8.56e-05,96425.0,96424.0,0.4087797]
[1734892419203,0.0010856,96425.0,96424.0,0.4177797]
[1734892419414,0.0010856,96425.0,96424.0,0.75577479]
[1734892419619,0.0010856,96425.0,96424.0,0.731475]
[1734892420085,0.0010856,96425.0,96424.0,0.731375]
[1734892420696,0.0010856,96425.0,96424.0,0.63952457]
[1734892421049,0.0010856,96425.0,96424.0,0.30152948]
[1734892421653,8.56e-05,96425.0,96424.0,0.29252948]
[1734892421924,8.56e-05,96425.0,96424.0,0.29242948]
[1734892422073,0.0010856,96425.0,96424.0,0.30142948]
[1734892422552,8.56e-05,96425.0,96424.0,5.43e-05]
[1734892422826,0.0010856,96425.0,96424.0,0.2164713]
[1734892423037,0.0010856,96425.0,96424.0,0.0090543]
[1734892423209,8.56e-05,96425.0,96424.0,5.43e-05]
[1734892423612,0.0010856,96425.0,96424.0,0.0090543]
[1734892425329,8.56e-05,96425.0,96424.0,5.43e-05]
[1734892425459,8.56e-05,96425.0,96424.0,0.0050543]
[1734892425900,8.56e-05,96425.0,96424.0,5.43e-05]
[1734892426506,8.56e-05,96425.0,96424.0,0.0060543]
[1734892426829,8.56e-05,96425.0,96424.0,5.43e-05]
[1734892427033,8.56e-05,96425.0,96420.0,0.2073783]
[1734892427225,8.56e-05,96425.0,96420.0,0.20744645]
[1734892427985,8.56e-05,96425.0,96422.0,0.207421]
[1734892428616,0.0010856,96425.0,96424.0,0.007]
[1734892428844,8.56e-05,96425.0,96422.0,0.207421]
[1734892429162,0.0010856,96425.0,96422.0,0.216421]
[1734892429591,8.56e-05,96425.0,96420.0,6.815e-05]
[1734892430061,0.0010856,96425.0,96424.0,0.009]
[1734892430292,0.0010856,96425.0,96420.0,6.815e-05]
[1734892430293,8.56e-05,96425.0,96421.0,0.414846]
[1734892431842,0.0010856,96425.0,96423.0,0.207419]
[1734892432337,8.56e-05,96425.0,96423.0,0.207419]
[1734892432736,6e-07,96425.0,96424.0,0.10234538]
[1734892432860,8.56e-05,96435.0,96434.0,0.1]
[1734892433060,8.56e-05,96435.0,96434.0,0.4087034]
[1734892433366,0.0451,96467.0,96459.0,0.207341]
[1734892434612,0.08134339,96460.0,96459.0,0.207341]
[1734892435782,0.00054339,96460.0,96459.0,0.207341]
[1734892435999,0.00054339,96460.0,96459.0,0.3086494]
[1734892437043,0.00054339,96460.0,96459.0,0.57065439]
[1734892437263,0.00054339,96460.0,96459.0,0.56665439]
[1734892438222,0.00054339,96460.0,96459.0,0.3086494]
[1734892438624,8.55e-05,96469.0,96468.0,0.207322]
[1734892438826,8.55e-05,96469.0,96460.0,0.207339]
[1734892439202,8.55e-05,96469.0,96459.0,0.11037655]
[1734892439479,8.55e-05,96469.0,96459.0,0.00906815]
[1734892439644,8.55e-05,96469.0,96459.0,6.815e-05]
[1734892439854,0.207322,96468.0,96459.0,6.815e-05]
[1734892440155,0.207329,96465.0,96459.0,6.815e-05]
[1734892440632,0.207339,96460.0,96459.0,6.815e-05]
[1734892440827,0.352439,96460.0,96459.0,0.00606815]
[1734892441023,0.352439,96460.0,96459.0,6.815e-05]
[1734892442384,0.352439,96460.0,96430.0,0.09140862]
[1734892442385,0.51478,96437.0,96430.0,0.09140862]
[1734892442574,0.1,96433.0,96432.0,0.00054339]
[1734892442776,0.1818,96433.0,96432.0,0.00054339]
[1734892443578,0.2291,96433.0,96432.0,0.00054339]
[1734892444284,0.2291,96433.0,96432.0,0.00754339]
[1734892444473,0.2291,96433.0,96432.0,0.00054339]
[1734892446466,0.2291,96433.0,96432.0,0.00154339]
[1734892446906,0.2291,96433.0,96432.0,0.00054339]
[1734892447310,0.2291,96433.0,96432.0,0.00554339]
[1734892448562,0.2291,96433.0,96432.0,0.00571459]
[1734892449511,0.3534084,96433.0,96432.0,0.00571459]
[1734892449917,0.3534084,96433.0,96432.0,0.00071459]
[1734892454291,0.2291,96433.0,96432.0,0.00071459]
[1734892455233,0.1291,96433.0,96432.0,0.00071459]
[1734892455385,0.0473,96433.0,96432.0,0.00071459]
[1734892455562,0.1,96440.0,96432.0,0.00071459]
[1734892455767,0.207384,96439.0,96432.0,0.00071459]
[1734892455968,0.1,96447.0,96432.0,0.00071459]
[1734892456181,0.1,96447.0,96433.0,0.207397]
[1734892456378,0.1275,96449.0,96433.0,0.10234531]
[1734892457202,0.1275,96449.0,96434.0,0.207395]
[1734892457412,0.207365,96448.0,96435.0,0.1013084]
[1734892457607,0.1,96444.0,96432.0,0.00071459]
[1734892458042,0.1,96444.0,96433.0,0.002]
[1734892458214,0.1,96444.0,96432.0,0.00071459]
[1734892458589,0.1,96444.0,96435.0,0.003]
[1734892459171,0.207391,96436.0,96435.0,0.003]
[1734892459749,0.1,96439.0,96435.0,0.003]
[1734892460124,0.1275,96449.0,96435.0,0.1013084]
[1734892460325,0.1275,96449.0,96437.0,0.207387]
[1734892461077,0.1275,96449.0,96435.0,0.1013084]
[1734892461289,0.1,96447.0,96432.0,0.00071459]
[1734892461428,0.1275,96449.0,96432.0,0.00071459]
[1734892461633,0.434864,96449.0,96435.0,0.003]
[1734892461833,0.2275,96449.0,96433.0,0.207397]
[1734892462039,0.207365,96448.0,96432.0,0.00071459]
[1734892462451,0.207365,96448.0,96433.0,0.207397]
[1734892462868,0.414731,96448.0,96432.0,0.00071459]
[1734892463241,0.414731,96448.0,96433.0,0.207397]
[1734892463441,0.207397,96433.0,96432.0,0.00071459]
[1734892463768,0.307397,96433.0,96432.0,0.00071459]
[1734892463958,0.1,96433.0,96432.0,0.00071459]
[1734892465146,0.1,96433.0,96432.0,0.00771459]
[1734892465749,0.2243084,96433.0,96432.0,0.00771459]
[1734892465955,0.3480084,96433.0,96432.0,0.00771459]
[1734892466584,0.330415,96425.0,96403.0,0.09140862]